bitfinex/quotes_BTCUSD_20250421
["timestamp","ask_amount","ask_price","bid_price","bid_amount"]
[1745256436337,1.0,87225.0,87216.0,0.01146578]
[1745256436517,1.0,87225.0,87218.0,0.56931046]
[1745256436717,1.0004209,87225.0,87218.0,0.6830664]
[1745256437828,1.0004209,87225.0,87224.0,0.56929468]
[1745256438056,1.0004209,87225.0,87224.0,0.68305062]
[1745256438897,1.0014209,87225.0,87224.0,0.68305062]
[1745256439291,1.0014209,87225.0,87224.0,0.68405062]
[1745256439556,1.0014209,87225.0,87224.0,0.68305062]
[1745256440647,1e-08,87225.0,87224.0,0.68305062]
[1745256444067,1e-08,87225.0,87224.0,1.10205062]
[1745256444912,1e-08,87225.0,87224.0,1.11659147]
[1745256446342,0.000421,87253.0,87248.0,0.22923161]
[1745256446546,0.000421,87253.0,87248.0,0.64823161]
[1745256447319,0.000421,87253.0,87248.0,0.98823161]
[1745256447531,0.000421,87253.0,87248.0,0.64823161]
[1745256447948,0.004,87249.0,87248.0,0.64823161]
[1745256448162,0.004,87249.0,87248.0,0.419]
[1745256448364,0.005,87249.0,87248.0,0.419]
[1745256448594,0.007,87249.0,87248.0,0.419]
[1745256448800,0.01202555,87249.0,87248.0,0.419]
[1745256449050,0.007,87249.0,87248.0,0.419]
[1745256449470,0.007,87249.0,87248.0,0.76198755]
[1745256450103,0.007,87249.0,87248.0,1.10198755]
[1745256450514,0.01146263,87240.0,87232.0,0.419]
[1745256450718,0.22927103,87233.0,87232.0,0.419]
[1745256450928,0.00510858,87233.0,87232.0,0.64827366]
[1745256451137,0.01146236,87242.0,87232.0,0.64827366]
[1745256451138,0.22925906,87238.0,87233.0,0.34]
[1745256451337,0.24071698,87240.0,87233.0,0.34]
[1745256451577,0.00512621,87239.0,87234.0,0.24073133]
[1745256451785,0.00512621,87239.0,87237.0,0.22926052]
[1745256451993,0.001,87239.0,87237.0,0.01146302]
[1745256452196,0.001,87238.0,87233.0,0.34]
[1745256452399,0.001,87238.0,87236.0,0.22926214]
[1745256452607,0.00512002,87237.0,87234.0,0.01146342]
[1745256452808,0.001,87239.0,87236.0,0.24072562]
[1745256453016,0.003,87239.0,87238.0,0.22925789]
[1745256453630,0.003,87239.0,87238.0,0.56925789]
[1745256454063,0.003,87239.0,87238.0,0.34]
[1745256454295,0.001,87239.0,87235.0,0.01146328]
[1745256454490,0.001,87239.0,87238.0,0.22925789]
[1745256455341,0.001,87239.0,87234.0,0.22926604]
[1745256455561,0.001,87239.0,87233.0,0.35146355]
[1745256455562,0.001,87239.0,87235.0,0.22926322]
[1745256455743,0.001,87239.0,87236.0,0.419]
[1745256455957,0.00515513,87238.0,87236.0,0.419]
[1745256456398,0.23441412,87238.0,87236.0,0.419]
[1745256456610,0.00515513,87238.0,87236.0,0.419]
[1745256457242,0.27636052,87237.0,87236.0,0.419]
[1745256457494,0.22929994,87222.0,87221.0,0.419]
[1745256457712,0.23435679,87222.0,87221.0,0.419]
[1745256457952,0.00505685,87222.0,87221.0,0.419]
[1745256458168,0.24075947,87224.0,87221.0,0.419]
[1745256458370,0.00554245,87222.0,87221.0,0.419]
[1745256458601,0.24075947,87224.0,87221.0,0.419]
[1745256458814,0.00554245,87222.0,87221.0,0.419]
[1745256459063,0.00654245,87222.0,87221.0,0.419]
[1745256459496,0.00654245,87222.0,87218.0,0.24077591]
[1745256459718,0.01146657,87210.0,87197.0,0.01146828]
[1745256459940,0.22932886,87211.0,87202.0,0.01146762]
[1745256460165,0.00542995,87210.0,87203.0,0.01146749]
[1745256460378,0.00542995,87210.0,87204.0,0.01146736]
[1745256460599,0.01146552,87218.0,87202.0,0.22935227]
[1745256460801,0.00542685,87209.0,87208.0,0.61980123]
[1745256461047,0.001,87211.0,87208.0,0.24080321]
[1745256461247,0.00538448,87210.0,87208.0,0.24080321]
[1745256461454,0.001,87210.0,87208.0,0.24080321]
[1745256461690,0.23033349,87210.0,87207.0,0.43073588]
[1745256461900,0.00538138,87209.0,87207.0,0.43073588]
[1745256462333,0.22933675,87208.0,87207.0,0.419]
[1745256462537,0.23470542,87208.0,87207.0,0.419]
[1745256462748,0.22937764,87193.0,87190.0,0.38817142]
[1745256462967,0.01146867,87194.0,87186.0,0.43131413]
[1745256462968,0.01146933,87189.0,87186.0,0.4198444]
[1745256463193,0.00531445,87192.0,87191.0,0.22938147]
[1745256463423,0.01146762,87202.0,87196.0,0.01146841]
[1745256463656,0.00534233,87201.0,87198.0,0.01146815]
[1745256463882,0.0114671,87206.0,87198.0,0.00229339]
[1745256464108,0.01146775,87201.0,87195.0,0.01146854]
[1745256464344,0.01680711,87200.0,87195.0,0.2408394]
[1745256464564,0.00533923,87200.0,87196.0,0.01246841]
[1745256464791,0.22936568,87197.0,87196.0,0.001]
[1745256465020,0.22936568,87197.0,87186.0,0.0008444]
[1745256465021,0.22939199,87187.0,87186.0,0.0008444]
[1745256465254,0.23442482,87187.0,87186.0,0.0008444]
[1745256466135,0.00503283,87187.0,87186.0,0.0008444]
[1745256468298,0.001,87187.0,87186.0,0.0008444]
[1745256468555,0.00698677,87187.0,87186.0,0.0008444]
[1745256470476,0.01147025,87182.0,87177.0,0.01147091]
[1745256470667,0.01146999,87184.0,87179.0,0.01147065]
[1745256470880,0.00492654,87181.0,87178.0,0.24088529]
[1745256471097,0.24086842,87185.0,87180.0,0.01147052]
[1745256471331,0.01640582,87184.0,87179.0,0.01147065]
[1745256471551,0.01147012,87183.0,87177.0,0.38817142]
[1745256471765,0.22940586,87182.0,87178.0,0.01135501]
[1745256471985,0.00492654,87181.0,87177.0,0.61758928]
[1745256472233,0.00492654,87181.0,87177.0,0.01147091]
[1745256472421,0.01147025,87182.0,87177.0,0.24088726]
[1745256472627,0.00492344,87180.0,87178.0,0.22941535]
[1745256472838,0.00492654,87181.0,87178.0,0.24088613]
[1745256473044,0.24086732,87185.0,87181.0,0.01147038]
[1745256473241,0.24086732,87185.0,87180.0,0.24088093]
[1745256473674,0.22936204,87199.0,87186.0,0.01146973]
[1745256473881,0.01146854,87195.0,87190.0,0.0114692]
[1745256474083,0.24084007,87195.0,87190.0,0.24085225]
[1745256474373,0.01146841,87196.0,87191.0,0.24084879]
[1745256474553,0.22934818,87204.0,87199.0,0.22936041]
[1745256474764,0.01146775,87201.0,87197.0,0.01146828]
[1745256474895,0.22935541,87201.0,87197.0,0.24083333]
[1745256475095,0.24079413,87212.0,87206.0,0.22934201]
[1745256475295,0.24079413,87212.0,87205.0,0.01146723]
[1745256475296,0.01246683,87208.0,87201.0,0.24082032]
[1745256475500,0.01146696,87207.0,87197.0,0.24083395]
[1745256475753,0.01146736,87204.0,87197.0,0.01146828]
[1745256475955,0.01146736,87204.0,87193.0,0.22937576]
[1745256475956,0.22935017,87203.0,87196.0,0.24083668]
[1745256476135,0.01146736,87204.0,87198.0,0.01146815]
[1745256476333,0.001,87208.0,87205.0,0.22934218]
[1745256476537,0.001,87208.0,87207.0,0.22933938]
[1745256476956,0.003,87208.0,87207.0,0.23163234]
[1745256477747,0.003,87208.0,87207.0,0.22933938]
[1745256477945,0.001,87208.0,87207.0,0.34538829]
[1745256478153,0.001,87208.0,87207.0,0.34309532]
[1745256479134,0.001,87208.0,87207.0,0.22933938]
[1745256479862,0.001,87208.0,87207.0,0.23033938]
[1745256480462,0.001,87208.0,87207.0,0.77885297]
[1745256480695,1e-08,87208.0,87207.0,0.77956001]
[1745256480913,0.01146236,87242.0,87237.0,0.24072331]
[1745256481128,0.01146263,87240.0,87234.0,0.24073101]
[1745256481347,0.01146355,87233.0,87227.0,0.01146434]
[1745256481557,0.00472966,87232.0,87228.0,0.24074837]
[1745256481762,0.00472966,87232.0,87230.0,0.22927721]
[1745256481985,0.01146552,87218.0,87213.0,0.01146618]
[1745256482204,0.01146499,87222.0,87207.0,0.23133822]
[1745256482418,0.11375594,87221.0,87207.0,0.00199999]
[1745256482632,0.22933457,87209.0,87207.0,0.00199999]
[1745256483039,0.11841131,87208.0,87207.0,0.00199999]
[1745256483687,0.11841131,87208.0,87207.0,0.00299999]
[1745256483886,0.11841131,87208.0,87207.0,0.00199999]
[1745256484927,0.00765537,87208.0,87207.0,0.00199999]
[1745256485117,0.00865537,87208.0,87207.0,0.00199999]
[1745256485744,0.00965537,87208.0,87207.0,0.00199999]
[1745256487687,0.23899212,87208.0,87207.0,0.00199999]
[1745256488952,0.01146749,87203.0,87198.0,0.24083118]
[1745256489311,0.01146775,87201.0,87196.0,0.2408361]
[1745256489474,0.01146775,87201.0,87196.0,0.01146841]
[1745256489681,0.01828262,87200.0,87192.0,0.24084738]
[1745256489879,0.01146815,87198.0,87193.0,0.01146881]
[1745256490087,0.01146788,87200.0,87195.0,0.01146854]
[1745256490284,0.24763884,87199.0,87195.0,0.01146854]
[1745256490486,0.2408312,87198.0,87194.0,0.24084153]
[1745256490664,0.22937916,87192.0,87190.0,0.419]
[1745256490864,0.00677293,87191.0,87190.0,0.419]
[1745256491215,0.2361544,87191.0,87190.0,0.419]
[1745256491561,0.22942357,87175.0,87174.0,0.419]
[1745256491769,0.23591439,87175.0,87174.0,0.419]
[1745256491986,0.23491439,87175.0,87174.0,0.419]
[1745256492416,0.00649082,87175.0,87174.0,0.419]
[1745256492844,0.24088959,87177.0,87174.0,0.419]
[1745256493076,0.01147052,87180.0,87175.0,0.01147117]
[1745256493298,0.01147078,87178.0,87174.0,0.64842421]
[1745256493503,0.01147078,87178.0,87174.0,0.65989552]
[1745256493708,0.24089007,87177.0,87174.0,0.419]
[1745256494492,0.01147078,87178.0,87174.0,0.65989613]
[1745256494643,0.01147078,87178.0,87175.0,0.24089338]
[1745256494853,0.240882,87180.0,87176.0,0.24089183]
[1745256495118,0.240882,87180.0,87176.0,0.24089179]
[1745256495683,0.22940857,87181.0,87178.0,0.22941514]
[1745256495917,0.22941072,87180.0,87177.0,0.01147091]
[1745256496142,0.01147065,87179.0,87176.0,0.24189012]
[1745256496341,0.01147038,87181.0,87177.0,0.01147091]
[1745256496536,0.001,87180.0,87177.0,0.01147091]
[1745256496740,0.24188097,87180.0,87176.0,0.01247104]
[1745256497004,0.22941377,87179.0,87176.0,0.001]
[1745256497280,0.24088442,87179.0,87176.0,0.001]
[1745256497484,0.24188442,87179.0,87176.0,0.001]
[1745256497859,0.001,87179.0,87177.0,0.22941756]
[1745256498026,0.001,87179.0,87178.0,0.22941567]
[1745256498517,0.001,87179.0,87178.0,0.23170958]
[1745256498697,0.01147012,87183.0,87180.0,0.24087885]
[1745256499120,0.00642072,87182.0,87181.0,0.22940778]
[1745256499333,0.24087045,87184.0,87181.0,0.22940778]
[1745256499599,0.5,87302.0,87182.0,0.22940499]
[1745256499600,0.00642537,87183.0,87182.0,0.22940499]
[1745256499818,0.00642537,87183.0,87182.0,0.77676093]
[1745256500035,0.001,87191.0,87190.0,0.2293841]
[1745256500262,0.001,87191.0,87185.0,0.01146986]
[1745256500473,0.01146973,87186.0,87177.0,0.01147091]
[1745256500694,0.24086446,87186.0,87182.0,0.22940488]
[1745256500861,0.24086444,87186.0,87182.0,0.22940488]
[1745256501121,0.24086444,87186.0,87178.0,0.01147078]
[1745256501122,0.01147038,87181.0,87178.0,0.01147078]
[1745256501349,0.24087862,87181.0,87177.0,0.24088855]
[1745256501586,0.22942883,87173.0,87170.0,0.34]
[1745256501840,0.22942883,87173.0,87161.0,0.0048446]
[1745256502073,0.22945779,87162.0,87161.0,0.00384461]
[1745256502288,0.22945779,87162.0,87140.0,0.0008448]
[1745256502289,0.22948411,87152.0,87140.0,0.0008448]
[1745256502509,0.3577809,87152.0,87140.0,0.0008448]
[1745256503180,0.34324005,87152.0,87140.0,0.0008448]
[1745256503419,0.34324005,87152.0,87142.0,0.01147552]
[1745256503420,0.22948411,87152.0,87142.0,0.01147552]
[1745256503628,0.01147394,87154.0,87143.0,0.24098266]
[1745256503846,0.23248411,87152.0,87141.0,0.01147565]
[1745256504070,0.23248411,87152.0,87143.0,0.01147539]
[1745256504262,0.23248411,87152.0,87140.0,0.0008448]
[1745256504468,0.34724005,87152.0,87140.0,0.0008448]
[1745256504900,0.23348411,87152.0,87141.0,0.22951302]
[1745256505138,0.23048411,87152.0,87141.0,0.22951302]
[1745256505346,0.34624005,87152.0,87140.0,0.0008448]
[1745256506236,0.34424005,87152.0,87140.0,0.0008448]
[1745256506533,0.3607809,87152.0,87140.0,0.0008448]
[1745256506773,0.3597809,87152.0,87140.0,0.0008448]
[1745256506992,0.3587809,87152.0,87140.0,0.0008448]
[1745256507216,0.3617809,87152.0,87140.0,0.0008448]
[1745256507428,0.3637809,87152.0,87140.0,0.0008448]
[1745256508060,0.34924005,87152.0,87142.0,0.01147552]
[1745256508263,0.47444005,87152.0,87140.0,0.0008448]
[1745256508517,0.47444005,87152.0,87149.0,0.0114746]
[1745256508518,0.006,87152.0,87149.0,0.0114746]
[1745256508745,0.006,87152.0,87142.0,0.01147552]
[1745256508965,0.006,87152.0,87141.0,0.01147565]
[1745256509191,0.003,87152.0,87137.0,0.22952351]
[1745256509417,0.003,87152.0,87133.0,0.0123211]
[1745256509418,0.11875594,87152.0,87133.0,0.0123211]
[1745256509610,0.11575594,87152.0,87133.0,0.0008444]
[1745256509816,0.11675594,87152.0,87134.0,0.01147657]
[1745256510015,0.11675594,87152.0,87133.0,0.0008444]
[1745256510436,0.11675594,87152.0,87136.0,0.01147631]
[1745256510986,0.11675594,87152.0,87137.0,0.01147618]
[1745256511216,0.11675594,87152.0,87140.0,0.01232058]
[1745256511645,0.11675594,87152.0,87140.0,0.0008448]
[1745256512261,0.003,87152.0,87143.0,0.01147539]
[1745256512470,0.003,87152.0,87140.0,0.39988943]
[1745256512676,0.003,87152.0,87140.0,0.0008448]
[1745256513120,0.11675594,87152.0,87140.0,0.0008448]
[1745256514152,0.24195594,87152.0,87140.0,0.0008448]
[1745256515605,0.47144005,87152.0,87140.0,0.0008448]
[1745256518196,0.4869809,87152.0,87140.0,0.0008448]
[1745256518895,0.4849809,87152.0,87140.0,0.0008448]
[1745256519109,0.4869809,87152.0,87140.0,0.0008448]
[1745256519610,0.4889809,87152.0,87140.0,0.0008448]
[1745256519824,0.4889809,87152.0,87151.0,0.00032092]
[1745256520220,0.47444005,87152.0,87151.0,0.00032092]
[1745256520478,0.47144005,87152.0,87151.0,0.00032092]
[1745256520872,0.47344005,87152.0,87151.0,0.00032092]
[1745256521071,0.47144005,87152.0,87151.0,0.00032092]
[1745256521394,0.56784005,87152.0,87151.0,0.00032092]
[1745256521600,0.7423809,87152.0,87151.0,1e-08]
[1745256522177,0.7433809,87152.0,87151.0,1e-08]
[1745256522441,0.4849809,87152.0,87151.0,1e-08]
[1745256522851,0.4869809,87152.0,87151.0,1e-08]
[1745256523066,0.4859809,87152.0,87151.0,1e-08]
[1745256523485,0.4879809,87152.0,87151.0,1e-08]
[1745256523675,0.4899809,87152.0,87151.0,1e-08]
[1745256524799,0.4879809,87152.0,87151.0,1e-08]
[1745256524931,0.4899809,87152.0,87151.0,1e-08]
[1745256525339,0.8399809,87152.0,87151.0,1e-08]
[1745256526131,0.84653285,87152.0,87151.0,1e-08]
[1745256526385,0.84753285,87152.0,87151.0,1e-08]
[1745256526556,0.84553285,87152.0,87151.0,1e-08]
[1745256526957,0.84753285,87152.0,87151.0,1e-08]
[1745256527203,0.9612849,87152.0,87151.0,1e-08]
[1745256527938,0.84753285,87152.0,87151.0,1e-08]
[1745256531935,0.84757285,87152.0,87151.0,1e-08]
[1745256532308,0.72233285,87152.0,87151.0,1e-08]
[1745256532479,0.84757285,87152.0,87151.0,1e-08]
[1745256533678,0.483032,87152.0,87151.0,1e-08]
[1745256533859,0.357792,87152.0,87151.0,1e-08]
[1745256534041,0.483032,87152.0,87151.0,1e-08]
[1745256534246,0.49757285,87152.0,87151.0,1e-08]
[1745256535096,0.49657285,87152.0,87151.0,1e-08]
[1745256535562,0.49557285,87152.0,87151.0,1e-08]
[1745256535942,0.49757285,87152.0,87151.0,1e-08]
[1745256537138,0.53757285,87152.0,87151.0,1e-08]
[1745256537388,0.49757285,87152.0,87151.0,1e-08]
[1745256539316,0.6213249,87152.0,87151.0,1e-08]
[1745256539510,0.50757285,87152.0,87151.0,1e-08]
[1745256540659,0.84757285,87152.0,87151.0,1e-08]
[1745256540892,0.94367285,87152.0,87151.0,1e-08]
[1745256541107,0.97551396,87152.0,87151.0,1e-08]
[1745256541535,0.97351396,87152.0,87151.0,1e-08]
[1745256541848,0.97251396,87152.0,87151.0,1e-08]
[1745256542031,1.02640052,87152.0,87151.0,1e-08]
[1745256542475,1.02840052,87152.0,87151.0,1e-08]
[1745256542877,1.02540052,87152.0,87151.0,1e-08]
[1745256543120,1.02640052,87152.0,87151.0,1e-08]
[1745256543320,1.02940052,87152.0,87151.0,1e-08]
[1745256544285,0.94467285,87152.0,87151.0,1e-08]
[1745256545315,0.56951308,87141.0,87140.0,1e-08]
[1745256545522,0.83780987,87141.0,87140.0,1e-08]
[1745256546017,0.85434932,87141.0,87140.0,1e-08]
[1745256546610,1.27024932,87141.0,87140.0,1e-08]
[1745256547027,1.27866218,87141.0,87140.0,1e-08]
[1745256547203,1.28994119,87141.0,87140.0,1e-08]
[1745256548197,1.29094119,87141.0,87140.0,1e-08]
[1745256548642,1.40469324,87141.0,87140.0,1e-08]
[1745256549054,1.29094119,87141.0,87140.0,1e-08]
[1745256549671,1.29098119,87141.0,87140.0,1e-08]
[1745256549872,1.29098119,87141.0,87110.0,0.0494]
[1745256549873,0.01454085,87130.0,87110.0,0.0494]
[1745256550107,0.22956841,87120.0,87110.0,0.0494]
[1745256550302,0.34332435,87120.0,87110.0,0.0494]
[1745256550924,0.34332435,87120.0,87108.0,0.0008446]
[1745256551742,0.34332435,87120.0,87119.0,0.0018406]
[1745256552377,0.3578652,87120.0,87119.0,0.0018406]
[1745256552886,0.8178652,87120.0,87119.0,0.0018406]
[1745256553474,0.82846755,87120.0,87119.0,0.0018406]
[1745256554537,0.48846755,87120.0,87119.0,0.0018406]
[1745256554748,0.34332435,87120.0,87119.0,0.0018406]
[1745256555182,0.2410416,87122.0,87119.0,0.0486406]
[1745256555183,0.01147815,87122.0,87119.0,0.0486406]
[1745256555379,4e-05,87120.0,87119.0,0.0486406]
[1745256555696,4e-05,87120.0,87119.0,0.27821164]
[1745256555902,4e-05,87120.0,87119.0,0.27721164]
[1745256556109,4e-05,87120.0,87119.0,0.28897569]
[1745256556325,4e-05,87120.0,87119.0,0.34037569]
[1745256556537,4e-05,87120.0,87119.0,0.33837569]
[1745256557150,4e-05,87120.0,87119.0,0.34037569]
[1745256557586,4e-05,87120.0,87119.0,0.33837569]
[1745256557831,4e-05,87120.0,87119.0,0.34137569]
[1745256558003,4e-05,87120.0,87119.0,0.33161164]
[1745256558405,4e-05,87120.0,87119.0,0.32961164]
[1745256558614,4e-05,87120.0,87119.0,0.33161164]
[1745256559918,0.22960841,87120.0,87119.0,0.1020406]
[1745256561303,0.22960841,87120.0,87119.0,0.0068406]
[1745256561500,0.34336435,87120.0,87119.0,0.0068406]
[1745256562272,0.366659,87120.0,87119.0,0.0038406]
[1745256562464,0.376659,87120.0,87119.0,0.0018406]
[1745256562667,0.376659,87120.0,87119.0,0.0028406]
[1745256563706,0.376659,87120.0,87119.0,0.0038406]
[1745256563891,0.366659,87120.0,87119.0,0.0028406]
[1745256564090,0.366659,87120.0,87119.0,0.0018406]
[1745256564360,0.366659,87120.0,87119.0,0.0038406]
[1745256568290,0.47846289,87120.0,87119.0,0.0038406]
[1745256568728,0.366659,87120.0,87119.0,0.0038406]
[1745256569118,0.491659,87120.0,87119.0,0.0038406]
[1745256570895,0.491659,87120.0,87119.0,0.0028406]
[1745256572286,0.651659,87120.0,87119.0,1e-08]
[1745256573502,0.651659,87120.0,87092.0,0.0008444]
[1745256573503,0.34,87101.0,87092.0,0.0008444]
[1745256573707,0.69792055,87099.0,87098.0,1e-08]
[1745256573909,0.85792055,87099.0,87098.0,1e-08]
[1745256574080,0.86851871,87099.0,87098.0,1e-08]
[1745256574681,0.86951871,87099.0,87098.0,1e-08]
[1745256574879,0.70951871,87099.0,87098.0,1e-08]
[1745256575207,0.82364055,87099.0,87098.0,1e-08]
[1745256575625,0.9373926,87099.0,87098.0,1e-08]
[1745256575826,0.24418043,87093.0,87092.0,1e-08]
[1745256576029,0.52793637,87093.0,87092.0,1e-08]
[1745256576229,0.24419361,87088.0,87087.0,1e-08]
[1745256576390,0.35794955,87088.0,87087.0,1e-08]
[1745256577795,0.35894955,87088.0,87087.0,1e-08]
[1745256577923,0.37069762,87088.0,87087.0,1e-08]
[1745256578123,0.37946238,87088.0,87087.0,1e-08]
[1745256578491,0.37950238,87088.0,87087.0,1e-08]
[1745256579102,0.38150238,87088.0,87087.0,1e-08]
[1745256579301,0.35521346,87088.0,87087.0,1e-08]
[1745256579540,0.23269276,87088.0,87087.0,1e-08]
[1745256579749,0.23269276,87088.0,87087.0,0.04690001]
[1745256580162,0.22969276,87088.0,87087.0,0.04690001]
[1745256580535,0.23069276,87088.0,87087.0,0.04690001]
[1745256580741,0.23069276,87088.0,87087.0,0.04790001]
[1745256581809,0.22969276,87088.0,87087.0,0.04790001]
[1745256582385,0.23069276,87088.0,87087.0,0.04690001]
[1745256585300,0.00104,87088.0,87087.0,0.32505541]
[1745256585751,0.00104,87088.0,87087.0,0.66505541]
[1745256585958,0.01147947,87112.0,87098.0,0.32302639]
[1745256586137,0.01147907,87115.0,87098.0,0.32302639]
[1745256586138,0.01147973,87110.0,87098.0,0.32302639]
[1745256586387,0.0114796,87111.0,87098.0,0.32302639]
[1745256586616,0.01147987,87109.0,87098.0,0.32302639]
[1745256586830,0.22966376,87099.0,87098.0,0.0934]
[1745256587055,4e-05,87099.0,87098.0,0.0934]
[1745256587234,4e-05,87099.0,87098.0,0.32302639]
[1745256587445,0.00104,87099.0,87098.0,0.0964]
[1745256587800,0.00104,87099.0,87098.0,0.32602639]
[1745256588050,0.00204,87099.0,87098.0,0.32902639]
[1745256588369,0.00204,87099.0,87098.0,0.17562711]
[1745256588532,0.00204,87099.0,87098.0,0.17792309]
[1745256588733,0.00204,87099.0,87098.0,0.17492309]
[1745256589240,4e-05,87099.0,87098.0,0.17392309]
[1745256589721,4e-05,87099.0,87098.0,0.16962711]
[1745256589880,4e-05,87099.0,87098.0,0.17262711]
[1745256590085,4e-05,87099.0,87098.0,0.17462711]
[1745256590286,4e-05,87099.0,87098.0,0.005]
[1745256590507,0.22966376,87099.0,87098.0,0.005]
[1745256590913,4e-05,87099.0,87098.0,0.003]
[1745256591112,0.2381324,87090.0,87087.0,0.43148278]
[1745256591311,0.24012986,87090.0,87087.0,0.42000001]
[1745256591519,0.01148211,87092.0,87087.0,0.43148278]
[1745256591763,0.24112547,87092.0,87089.0,0.22964929]
[1745256591955,0.22964749,87090.0,87088.0,0.01148263]
[1745256592128,0.01148224,87091.0,87088.0,0.22965096]
[1745256592322,0.24112899,87091.0,87088.0,0.22965096]
[1745256592609,0.01148237,87090.0,87087.0,0.43148278]
[1745256593423,0.22965194,87089.0,87087.0,0.42000001]
[1745256593681,0.22965276,87088.0,87087.0,0.42000001]
[1745256594428,0.22865276,87088.0,87087.0,0.42000001]
[1745256595198,0.2411245,87092.0,87087.0,0.42000001]
[1745256595403,0.01148145,87097.0,87089.0,0.0114825]
[1745256595634,0.22963708,87094.0,87091.0,0.24112709]
[1745256596943,0.24111892,87094.0,87091.0,0.24112709]
[1745256597150,0.003,87094.0,87092.0,0.24112169]
[1745256597397,0.003,87094.0,87093.0,0.23193587]
[1745256597595,0.003,87094.0,87093.0,0.22963958]
[1745256598623,0.003,87094.0,87091.0,0.001]
[1745256598934,0.01448184,87094.0,87092.0,0.22964158]
[1745256599132,0.24112085,87095.0,87091.0,0.24112464]
[1745256599271,0.002,87094.0,87091.0,0.24112464]
[1745256599791,0.003,87094.0,87091.0,0.24112464]
[1745256599990,0.01148197,87093.0,87090.0,0.01148237]
[1745256600191,0.24112301,87093.0,87090.0,0.24112921]
[1745256600399,0.22965276,87088.0,87087.0,0.42000001]
[1745256601042,0.3434087,87088.0,87087.0,0.00100001]
[1745256601445,0.34939894,87088.0,87087.0,0.00100001]
[1745256602222,0.35239894,87088.0,87087.0,0.00100001]
[1745256602816,0.36693979,87088.0,87087.0,0.00100001]
[1745256603285,0.37093979,87088.0,87087.0,0.00200001]
[1745256603825,0.36793979,87088.0,87087.0,0.00200001]
[1745256604021,0.52793979,87088.0,87087.0,0.00200001]
[1745256604206,0.35639894,87088.0,87087.0,0.00200001]
[1745256604604,0.35339894,87088.0,87087.0,0.00200001]
[1745256605011,0.35639894,87088.0,87087.0,0.00200001]
[1745256605218,0.37093979,87088.0,87087.0,0.00200001]
[1745256606217,0.35639894,87088.0,87087.0,0.00200001]
[1745256607476,0.37093979,87088.0,87087.0,0.00200001]
[1745256609204,0.41773979,87088.0,87087.0,0.00200001]
[1745256612527,0.56973979,87088.0,87087.0,1e-08]
[1745256612963,0.58420152,87085.0,87084.0,1e-08]
[1745256613169,0.84795746,87085.0,87084.0,1e-08]
[1745256613597,0.86914584,87085.0,87084.0,1e-08]
[1745256613804,0.71914584,87085.0,87084.0,1e-08]
[1745256614452,0.69795746,87085.0,87084.0,1e-08]
[1745256614845,0.34341661,87085.0,87084.0,1e-08]
[1745256615263,0.34541661,87085.0,87084.0,1e-08]
[1745256615470,0.34841661,87085.0,87084.0,0.00100001]
[1745256616801,0.34845661,87085.0,87084.0,0.00100001]
[1745256618606,0.36299746,87085.0,87084.0,0.00100001]
[1745256621083,0.53299746,87085.0,87084.0,0.00100001]
[1745256621713,0.87299746,87085.0,87084.0,0.00100001]
[1745256622139,0.89422463,87085.0,87084.0,0.00100001]
[1745256622527,0.88360029,87085.0,87084.0,0.00100001]
[1745256622763,0.90483499,87085.0,87084.0,0.00100001]
[1745256623425,0.87299746,87085.0,87084.0,0.00100001]
[1745256624039,0.55031973,87085.0,87084.0,0.00100001]
[1745256624247,0.38031973,87085.0,87084.0,0.00100001]
[1745256624665,0.35907766,87085.0,87084.0,0.00100001]
[1745256624969,0.36299746,87085.0,87084.0,0.00100001]
[1745256628964,0.37362013,87085.0,87084.0,0.00100001]
[1745256630109,0.39490138,87085.0,87084.0,0.00100001]
[1745256630290,0.44020138,87085.0,87084.0,0.00100001]
[1745256630496,0.43570138,87085.0,87084.0,0.00100001]
[1745256630815,0.39040138,87085.0,87084.0,0.00100001]
[1745256631021,0.39140138,87085.0,87084.0,0.00100001]
[1745256631382,0.37012013,87085.0,87084.0,0.00100001]
[1745256631743,0.75652013,87085.0,87084.0,1e-08]
[1745256631987,1.08685343,87085.0,87084.0,1e-08]
[1745256632395,1.08685343,87085.0,87071.0,0.004]
[1745256632396,0.22969496,87072.0,87071.0,0.00300001]
[1745256632606,0.22969496,87072.0,87067.0,1e-08]
[1745256632607,0.24424636,87068.0,87067.0,1e-08]
[1745256632804,0.5080023,87068.0,87067.0,1e-08]
[1745256633019,0.58425692,87064.0,87063.0,1e-08]
[1745256633262,0.2442833,87054.0,87053.0,1e-08]
[1745256633413,0.51803924,87054.0,87053.0,1e-08]
[1745256633636,0.65278191,87054.0,87053.0,1e-08]
[1745256633834,0.49278191,87054.0,87053.0,1e-08]
[1745256634259,0.48215924,87054.0,87053.0,1e-08]
[1745256634471,0.48415924,87054.0,87053.0,1e-08]
[1745256634892,0.48215924,87054.0,87053.0,1e-08]
[1745256635049,0.48415924,87054.0,87053.0,1e-08]
[1745256636810,0.34649839,87054.0,87053.0,1e-08]
[1745256639625,0.23274245,87054.0,87053.0,1e-08]
[1745256640037,0.003,87054.0,87053.0,0.2307451]
[1745256640265,0.003,87054.0,87053.0,0.57304229]
[1745256640486,0.003,87054.0,87053.0,0.5707451]
[1745256640897,0.003,87054.0,87053.0,0.6178451]
[1745256641163,0.002,87054.0,87053.0,0.6178451]
[1745256641383,0.00599233,87068.0,87053.0,0.6178451]
[1745256641384,0.01148527,87068.0,87063.0,0.01148593]
[1745256641589,0.0114854,87067.0,87061.0,0.22972391]
[1745256641794,0.22971122,87066.0,87063.0,0.2297187]
[1745256641996,0.01148567,87065.0,87062.0,0.22972015]
[1745256642176,0.01148553,87066.0,87063.0,0.01148593]
[1745256642381,0.24119189,87068.0,87065.0,0.01148567]
[1745256642585,0.22968156,87078.0,87060.0,0.229724]
[1745256642586,0.01148408,87077.0,87074.0,0.22968968]
[1745256642785,0.22969039,87074.0,87073.0,0.0471]
[1745256642996,0.01148408,87077.0,87073.0,0.27679232]
[1745256643221,0.0114825,87089.0,87081.0,0.22967122]
[1745256643425,0.0114825,87089.0,87079.0,0.01148382]
[1745256643426,0.24113346,87089.0,87082.0,0.01148342]
[1745256643633,0.01148277,87087.0,87083.0,0.22966588]
[1745256643843,0.22966595,87083.0,87079.0,0.0452]
[1745256644063,0.2296976,87071.0,87055.0,0.0452]
[1745256644278,0.22971079,87066.0,87060.0,0.38756885]
[1745256644490,0.34346673,87066.0,87060.0,0.38756885]
[1745256644694,0.34346673,87066.0,87053.0,1e-08]
[1745256644907,0.34346673,87066.0,87056.0,0.38756885]